bitfinex-derivatives/quotes_BTCF0:USTF0_20250728
["timestamp","ask_amount","ask_price","bid_price","bid_amount"]
[1753690994825,0.35557214,119170.0,119160.0,1.55041456]
[1753690995726,0.30730214,119170.0,119160.0,1.55041456]
[1753690996328,0.35719214,119170.0,119160.0,1.58063584]
[1753690997723,0.77734214,119170.0,119160.0,2.20875145]
[1753691000333,0.35719214,119170.0,119160.0,2.20875145]
[1753691000535,0.30730214,119170.0,119160.0,2.20875145]
[1753691000832,0.24774409,119170.0,119160.0,2.20875145]
[1753691001033,0.18048195,119170.0,119160.0,2.20875145]
[1753691001334,0.18048195,119170.0,119160.0,2.18617872]
[1753691001632,0.18048195,119170.0,119160.0,2.20871791]
[1753691002234,0.04993,119180.0,119170.0,0.96438044]
[1753691002436,0.09593,119180.0,119170.0,2.12562044]
[1753691002637,0.47008,119180.0,119170.0,2.14815963]
[1753691002829,0.47008,119180.0,119170.0,2.81951963]
[1753691003637,0.47008,119180.0,119170.0,2.82051963]
[1753691003830,0.53870004,119180.0,119170.0,2.82051963]
[1753691005140,0.53870004,119180.0,119170.0,2.82151963]
[1753691005330,0.53870004,119180.0,119170.0,3.09101963]
[1753691009239,0.53870004,119180.0,119170.0,3.12024091]
[1753691009440,0.53870004,119180.0,119170.0,3.12224091]
[1753691009639,0.53870004,119180.0,119170.0,3.12324091]
[1753691011048,0.53870004,119180.0,119170.0,2.45188091]
[1753691011245,0.53870004,119180.0,119170.0,3.12276091]
[1753691012245,0.53870004,119180.0,119170.0,2.45188091]
[1753691012447,0.53870004,119180.0,119170.0,2.42934172]
[1753691012648,0.53870004,119180.0,119170.0,3.10018172]
[1753691013148,0.64870004,119180.0,119170.0,3.10018172]
[1753691013347,0.64870004,119180.0,119170.0,2.42934172]
[1753691013550,0.64870004,119180.0,119170.0,3.10018172]
[1753691014050,0.64870004,119180.0,119170.0,2.42934172]
[1753691014444,0.64870004,119180.0,119170.0,3.10018172]
[1753691019656,0.64870004,119180.0,119170.0,2.42934172]
[1753691019852,0.00910199,119180.0,119170.0,3.618598]
[1753691020052,4e-05,119190.0,119180.0,0.6207648]
[1753691020250,0.17,119190.0,119180.0,2.26219507]
[1753691020450,4e-05,119200.0,119190.0,0.1677907]
[1753691020651,4e-05,119210.0,119190.0,1.76726677]
[1753691020852,4e-05,119210.0,119200.0,0.86132863]
[1753691021352,0.04993,119210.0,119200.0,0.88016717]
[1753691021751,0.11825801,119210.0,119200.0,0.88016717]
[1753691022458,0.11825801,119210.0,119200.0,1.15066717]
[1753691022459,0.06836801,119210.0,119200.0,1.15066717]
[1753691025059,0.06836801,119210.0,119200.0,1.18079416]
[1753691025256,0.04718,119210.0,119200.0,1.20353733]
[1753691025462,0.04718,119210.0,119200.0,1.17341034]
[1753691025656,0.04718,119210.0,119200.0,1.84417034]
[1753691026860,0.04718,119210.0,119200.0,1.84517034]
[1753691027160,0.04718,119210.0,119200.0,1.84417034]
[1753691027355,0.04718,119210.0,119200.0,1.84617034]
[1753691027757,0.04718,119210.0,119200.0,3.00705034]
[1753691030368,0.04718,119210.0,119200.0,3.03703222]
[1753691030865,0.04718,119210.0,119200.0,1.20539222]
[1753691031263,0.04718,119210.0,119200.0,3.03691222]
[1753691032169,0.04718,119210.0,119200.0,3.47797173]
[1753691033370,0.04718,119210.0,119200.0,3.43263981]
[1753691035570,0.04718,119210.0,119200.0,3.43283409]
[1753691036968,0.04718,119210.0,119200.0,2.09119081]
[1753691037168,0.79903,119210.0,119200.0,3.11966219]
[1753691038670,0.79903,119210.0,119200.0,3.11998219]
[1753691041173,0.79903,119210.0,119200.0,3.45546383]
[1753691041976,0.79903,119210.0,119200.0,2.78450055]
[1753691042178,0.79903,119210.0,119200.0,3.11998219]
[1753691042474,0.79903,119210.0,119200.0,3.09751245]
[1753691042674,0.79903,119210.0,119200.0,3.11999513]
[1753691043068,0.79903,119210.0,119200.0,1.26583245]
[1753691043267,0.79903,119210.0,119200.0,2.76243081]
[1753691043575,0.79903,119210.0,119200.0,2.7549371]
[1753691043875,0.79903,119210.0,119200.0,2.3136371]
[1753691044272,1.13451164,119210.0,119200.0,0.4815571]
[1753691044475,1.13451164,119210.0,119200.0,2.29106893]
[1753691045175,0.79903,119210.0,119200.0,2.29106893]
[1753691045476,0.79903,119210.0,119200.0,2.3135971]
[1753691045675,0.79903,119210.0,119200.0,1.95531057]
[1753691045876,0.79903,119210.0,119200.0,1.97779874]
[1753691046075,0.79903,119210.0,119200.0,2.64935874]
[1753691046676,0.79903,119210.0,119200.0,1.97779874]
[1753691046876,0.79903,119210.0,119200.0,2.64931874]
[1753691050279,0.79903,119210.0,119200.0,2.67930062]
[1753691050874,0.79903,119210.0,119200.0,2.65681245]
[1753691052784,0.40816,119210.0,119200.0,2.99229409]
[1753691053281,0.37718,119210.0,119200.0,2.99229409]
[1753691053481,0.37718,119210.0,119200.0,3.03762601]
[1753691053682,0.37718,119210.0,119200.0,2.70214437]
[1753691053882,0.45907,119210.0,119200.0,2.70214437]
[1753691054082,0.81195,119210.0,119200.0,2.70214437]
[1753691054284,0.81195,119210.0,119200.0,2.65681245]
[1753691054483,0.81195,119210.0,119200.0,2.70214437]
[1753691054881,0.81195,119210.0,119200.0,2.65681245]
[1753691055186,0.81195,119210.0,119200.0,2.70214437]
[1753691055683,0.81195,119210.0,119200.0,3.03762601]
[1753691055983,0.81195,119210.0,119200.0,2.70214437]
[1753691056483,0.81195,119210.0,119200.0,2.65681245]
[1753691056685,0.81195,119210.0,119200.0,2.70214437]
[1753691059186,0.81195,119210.0,119200.0,2.43264437]
[1753691062989,0.7376,119210.0,119200.0,2.43264437]
[1753691063585,0.81195,119210.0,119200.0,2.43264437]
[1753691063889,0.81195,119210.0,119200.0,1.76112437]
[1753691064090,0.81195,119210.0,119200.0,2.43224437]
[1753691064291,0.81195,119210.0,119200.0,2.40226249]
[1753691068489,0.7376,119210.0,119200.0,2.73774413]
[1753691069103,0.37718,119210.0,119200.0,2.73774413]
[1753691070004,0.37718,119210.0,119200.0,2.69241221]
[1753691070603,0.01004,119210.0,119200.0,2.69241221]
[1753691072805,0.05636,119210.0,119200.0,2.69241221]
[1753691073301,0.05636,119210.0,119200.0,2.02129221]
[1753691073498,0.05636,119210.0,119200.0,2.69209221]
[1753691073695,0.49113,119210.0,119200.0,1.68581057]
[1753691073900,0.49113,119210.0,119200.0,2.35657057]
[1753691074096,0.49113,119210.0,119200.0,2.35653057]
[1753691074304,0.49113,119210.0,119200.0,2.40169599]
[1753691074907,0.49113,119210.0,119200.0,1.73097599]
[1753691075109,0.49113,119210.0,119200.0,2.40165599]
[1753691077606,0.49113,119210.0,119200.0,1.73097599]
[1753691077906,1.10661164,119210.0,119200.0,0.26486017]
[1753691078116,1.10661164,119210.0,119200.0,2.04360716]
[1753691078304,0.77113,119210.0,119200.0,2.04360716]
[1753691084116,0.77113,119210.0,119200.0,1.37292716]
[1753691084317,0.77113,119210.0,119200.0,2.04376716]
[1753691085518,0.77113,119210.0,119200.0,2.3792488]
[1753691089411,0.77113,119210.0,119200.0,2.3791288]
[1753691090824,0.69678,119210.0,119200.0,2.3791288]
[1753691091625,0.76921,119210.0,119200.0,2.3791288]
[1753691092324,0.76921,119210.0,119200.0,2.36033647]
[1753691094324,0.53193,119210.0,119200.0,2.36033647]
[1753691094825,0.76759,119210.0,119200.0,2.36033647]
[1753691095825,0.76759,119210.0,119200.0,2.02485483]
[1753691096027,0.76759,119210.0,119200.0,2.36033647]
[1753691096621,0.76759,119210.0,119200.0,2.02485483]
[1753691096822,0.76759,119210.0,119200.0,2.36033647]
[1753691100828,0.36859,119210.0,119200.0,2.36033647]
[1753691101721,0.57793,119210.0,119200.0,2.36033647]
[1753691101924,0.47004,119210.0,119200.0,2.36033647]
[1753691102125,0.53004,119210.0,119200.0,2.36033647]
[1753691103833,0.53004,119210.0,119200.0,1.68961647]
[1753691104036,0.53004,119210.0,119200.0,2.36173647]
[1753691104932,0.80004,119210.0,119200.0,2.36173647]
[1753691105333,0.80004,119210.0,119200.0,2.39186229]
[1753691108235,0.80004,119210.0,119200.0,1.71974229]
[1753691108536,0.80004,119210.0,119200.0,2.39142229]
[1753691108736,0.80004,119210.0,119200.0,2.36882406]
[1753691108933,0.80004,119210.0,119200.0,2.03330242]
[1753691109135,0.80004,119210.0,119200.0,2.05590184]
[1753691110037,0.80004,119210.0,119200.0,2.39138348]
[1753691112042,0.80004,119210.0,119200.0,2.36878406]
[1753691115936,0.80004,119210.0,119200.0,1.69714406]
[1753691116140,0.80004,119210.0,119200.0,2.36838406]
[1753691119948,0.80004,119210.0,119200.0,2.03290242]
[1753691120148,0.80004,119210.0,119200.0,2.36838406]
[1753691123544,0.80004,119210.0,119200.0,2.03290242]
[1753691123745,0.80004,119210.0,119200.0,2.36838406]
[1753691124048,0.48004,119210.0,119200.0,2.03290242]
[1753691124250,0.48004,119210.0,119200.0,2.36838406]
[1753691126158,0.48004,119210.0,119200.0,2.39099373]
[1753691126453,0.40149,119210.0,119200.0,2.39099373]
[1753691126658,0.73697164,119210.0,119200.0,0.05573549]
[1753691126852,0.99697164,119210.0,119200.0,0.003]
[1753691127146,1.63128837,119210.0,119200.0,0.65090796]
[1753691127351,1.91341837,119210.0,119200.0,0.65090796]
[1753691127552,1.69102035,119210.0,119200.0,0.67112]
[1753691127746,1.73296325,119210.0,119200.0,0.67112]
[1753691127951,1.77490615,119210.0,119200.0,0.67112]
[1753691128146,1.81684975,119210.0,119200.0,0.67112]
[1753691128352,1.76549811,119210.0,119200.0,0.67112]
[1753691129352,1.70506613,119210.0,119200.0,0.67112]
[1753691129558,1.70806613,119210.0,119200.0,0.67112]
[1753691129954,1.67593613,119210.0,119200.0,0.67112]
[1753691130453,2.01141777,119210.0,119200.0,0.62112]
[1753691130652,2.01141777,119210.0,119190.0,1.16088]
[1753691130653,0.40325,119200.0,119190.0,1.16088]
[1753691130852,1.40421328,119200.0,119190.0,0.6716]
[1753691131050,1.82200528,119200.0,119190.0,0.6716]
[1753691131250,1.82200528,119200.0,119180.0,0.04807]
[1753691131251,0.3952112,119180.0,119170.0,0.04807]
[1753691131453,1.19458824,119180.0,119170.0,0.04807]
[1753691131649,1.19458824,119180.0,119170.0,0.72007]
[1753691131955,1.27848437,119180.0,119170.0,0.72007]
[1753691132255,1.44630837,119180.0,119170.0,0.72007]
[1753691132850,1.44630837,119180.0,119170.0,0.75343]
[1753691133053,1.47626904,119180.0,119170.0,0.92782]
[1753691133660,1.30844504,119180.0,119170.0,0.92782]
[1753691134157,1.30844504,119180.0,119170.0,1.0383]
[1753691134561,1.30844504,119180.0,119170.0,1.1083]
[1753691136567,1.26649084,119180.0,119170.0,1.1083]
[1753691142566,0.76321067,119180.0,119170.0,1.61160054]
[1753691142772,0.33,119180.0,119170.0,1.61160054]
[1753691145169,0.33,119180.0,119170.0,1.2761189]
[1753691146364,0.33,119180.0,119170.0,1.61160054]
[1753691148774,0.33,119180.0,119170.0,1.2761189]
[1753691149774,0.37774,119180.0,119170.0,1.2761189]
[1753691151268,0.37774,119180.0,119170.0,1.61160054]
[1753691151575,0.33,119180.0,119170.0,1.61160054]
[1753691151775,0.33,119180.0,119170.0,1.2761189]
[1753691153370,0.33,119180.0,119170.0,1.5456189]
[1753691157376,0.33,119180.0,119170.0,1.88110054]
[1753691157578,0.33,119180.0,119170.0,1.90363388]
[1753691157780,0.33,119180.0,119170.0,1.88110054]
[1753691160881,0.33,119180.0,119170.0,1.90363388]
[1753691161072,0.33,119180.0,119170.0,1.88110054]
[1753691163185,0.33,119180.0,119170.0,1.90363388]
[1753691165692,0.37774,119180.0,119170.0,1.56815224]
[1753691167391,0.37774,119180.0,119170.0,1.90363388]
[1753691168594,0.33,119180.0,119170.0,1.90363388]
[1753691172195,0.33,119180.0,119170.0,1.9337597]
[1753691176996,0.37631,119180.0,119170.0,1.9337597]
[1753691177192,0.61876,119180.0,119170.0,1.59827806]
[1753691177689,1.06957164,119180.0,119170.0,1.61282224]
[1753691177896,1.06957164,119180.0,119170.0,1.54282224]
[1753691178395,1.06957164,119180.0,119170.0,1.61736224]
[1753691179398,1.06957164,119180.0,119170.0,1.5948289]
[1753691181292,1.06957164,119180.0,119170.0,1.61736224]
[1753691181501,0.73409,119180.0,119170.0,1.61736224]
[1753691181994,0.37631,119180.0,119170.0,1.61736224]
[1753691182194,0.33,119180.0,119170.0,1.95284388]
[1753691194104,0.37631,119180.0,119170.0,1.95284388]
[1753691194304,0.73409,119180.0,119170.0,1.61736224]
[1753691194507,1.06957164,119180.0,119170.0,1.61736224]
[1753691194705,1.06957164,119180.0,119170.0,1.61708224]
[1753691194905,1.06957164,119180.0,119170.0,1.44934334]
[1753691195208,1.06957164,119180.0,119170.0,1.35231]
[1753691195606,1.06957164,119180.0,119170.0,1.13273]
[1753691196207,1.06957164,119180.0,119170.0,1.3005489]
[1753691196412,1.06957164,119180.0,119170.0,1.30367]
[1753691197498,1.06957164,119180.0,119170.0,1.4714889]
[1753691197811,1.06957164,119180.0,119170.0,1.30367]
[1753691198811,1.15348185,119180.0,119170.0,0.63235]
[1753691199111,1.15348185,119180.0,119170.0,1.13265]
[1753691199609,1.15348185,119180.0,119170.0,1.30359]
[1753691200307,1.15348185,119180.0,119170.0,1.4714089]
[1753691200610,1.15348185,119180.0,119170.0,1.2764489]
[1753691202705,0.37631,119180.0,119170.0,1.61193054]
[1753691203413,0.33,119180.0,119170.0,1.61193054]
[1753691203621,0.33,119180.0,119170.0,1.63446388]
[1753691206516,0.33,119180.0,119170.0,1.90396388]
[1753691208413,0.33,119180.0,119170.0,1.56848224]
[1753691211023,0.33,119180.0,119170.0,1.90396388]
[1753691214120,0.33,119180.0,119170.0,1.92667212]
[1753691214514,0.33,119180.0,119170.0,1.90396388]
[1753691229229,0.33,119180.0,119170.0,1.9340897]
[1753691231633,0.33,119180.0,119170.0,1.91155636]
[1753691231829,0.33,119180.0,119170.0,1.9341791]
[1753691232228,0.33,119180.0,119170.0,1.91055636]
[1753691232530,0.335,119180.0,119170.0,1.91055636]
[1753691234030,0.336,119180.0,119170.0,1.90955636]
[1753691234233,0.34,119180.0,119170.0,1.90955636]
[1753691236338,0.34,119180.0,119170.0,1.92459596]
[1753691237341,0.34,119180.0,119170.0,1.95475678]
[1753691245945,0.62226,119180.0,119170.0,1.23835136]
[1753691246149,1.06636164,119180.0,119170.0,1.5911989]
[1753691246348,1.06636164,119180.0,119170.0,1.6439729]
[1753691246549,0.73088,119180.0,119170.0,1.95684136]
[1753691246749,0.73088,119180.0,119170.0,1.62135972]
[1753691256149,0.73088,119180.0,119170.0,1.64397594]
[1753691256755,0.73088,119180.0,119170.0,1.62135972]
[1753691257363,0.73088,119180.0,119170.0,1.64397657]
[1753691258758,0.98213531,119180.0,119170.0,1.89523188]
[1753691258960,0.62226,119180.0,119170.0,1.87261503]
[1753691259258,0.87351531,119180.0,119170.0,1.87261503]
[1753691259865,0.87351531,119180.0,119170.0,1.895236]
[1753691260364,0.87351531,119180.0,119170.0,1.87261503]
[1753691260562,0.62226,119180.0,119170.0,1.87261503]
[1753691260765,0.62226,119180.0,119170.0,1.89523701]
[1753691260963,0.62226,119180.0,119170.0,1.87261503]
[1753691264966,0.87351531,119180.0,119170.0,1.87261503]
[1753691265371,0.98007531,119180.0,119170.0,1.87261503]
[1753691265965,0.72882,119180.0,119170.0,1.87261503]
[1753691266671,0.72882,119180.0,119170.0,1.89523724]
[1753691269171,0.72882,119180.0,119170.0,1.87261503]
[1753691269371,0.72882,119180.0,119170.0,2.12371034]
[1753691269372,0.34,119180.0,119170.0,2.12371034]
[1753691269574,0.34,119180.0,119170.0,2.16887576]
[1753691273475,0.34,119180.0,119170.0,1.91762045]
[1753691273773,0.34,119180.0,119170.0,2.16887576]
[1753691279577,0.34,119180.0,119170.0,1.91762045]
[1753691280077,0.34,119180.0,119170.0,2.16887576]
[1753691280277,0.34,119180.0,119170.0,1.87245503]
[1753691280474,0.98297531,119180.0,119170.0,1.87245503]
[1753691280682,1.23423062,119180.0,119170.0,1.62119972]
[1753691280878,1.23423062,119180.0,119170.0,1.56928101]
[1753691281084,1.23423062,119180.0,119170.0,1.49158179]
[1753691281380,1.23423062,119180.0,119170.0,1.7428371]
[1753691281580,1.23423062,119180.0,119170.0,1.8174171]
[1753691281780,1.23423062,119180.0,119170.0,1.56616179]
[1753691282882,1.06676154,119180.0,119170.0,1.56616179]
[1753691284079,1.06676154,119180.0,119170.0,0.94365179]
[1753691284275,1.06676154,119180.0,119170.0,0.70126129]
[1753691284480,1.06676154,119180.0,119170.0,1.01099129]
[1753691284676,1.06676154,119180.0,119170.0,0.98837]
[1753691286186,1.06676154,119180.0,119170.0,1.1561805]
[1753691286789,1.06676154,119180.0,119170.0,1.3152305]
[1753691287086,1.06676154,119180.0,119170.0,1.14742]
[1753691288686,0.73172,119180.0,119170.0,1.14742]
[1753691288882,1.06676154,119180.0,119170.0,1.1203106]
[1753691289389,1.06676154,119180.0,119170.0,0.6435806]
[1753691289684,0.73172,119180.0,119170.0,1.64942214]
[1753691289987,0.34,119180.0,119170.0,1.67204343]
[1753691292288,0.34,119180.0,119170.0,1.94154343]
[1753691294794,0.34,119180.0,119170.0,1.94908296]
[1753691295293,0.34,119180.0,119170.0,1.97167799]
[1753691297095,0.34,119180.0,119170.0,1.94908296]
[1753691298398,0.34,119180.0,119170.0,1.97167815]
[1753691298596,0.34,119180.0,119170.0,1.94908296]
[1753691304908,0.34,119180.0,119170.0,1.94152067]
[1753691305201,0.34,119180.0,119170.0,1.97168149]
[1753691308502,0.34,119180.0,119170.0,1.94908296]
[1753691309002,0.34,119180.0,119170.0,1.86525328]
[1753691310799,0.34,119180.0,119170.0,2.11646514]
[1753691311300,0.34,119180.0,119170.0,1.86525328]
[1753691312601,0.61985,119180.0,119170.0,1.86525328]
[1753691312908,0.34,119180.0,119170.0,1.86525328]
[1753691314303,0.34,119180.0,119170.0,2.11646514]
[1753691314905,0.34,119180.0,119170.0,1.86525328]
[1753691315707,0.34,119180.0,119170.0,2.11646514]
[1753691315903,0.34,119180.0,119170.0,1.86525328]
[1753691318113,0.34,119180.0,119170.0,2.11646514]
[1753691318407,0.71299198,119200.0,119190.0,0.3575424]
[1753691318603,0.75493478,119200.0,119190.0,1.56549426]
[1753691318806,0.99299198,119200.0,119190.0,1.56549426]
[1753691319712,1.24520384,119200.0,119190.0,1.56549426]
[1753691320010,0.99399198,119200.0,119190.0,1.56549426]
[1753691320212,1.24520384,119200.0,119190.0,1.56549426]
[1753691320606,1.24520384,119200.0,119190.0,1.1465]
[1753691321909,1.24520384,119200.0,119190.0,1.416]
[1753691323521,1.4964157,119200.0,119190.0,0.31501]
[1753691323708,1.4964157,119200.0,119190.0,0.98553]
[1753691323903,1.99810383,119200.0,119190.0,0.2695]
[1753691324102,2.05853581,119200.0,119190.0,0.76502]
[1753691324306,2.05853581,119200.0,119190.0,0.67052]
[1753691324512,0.12069,119190.0,119180.0,0.04781]
[1753691324712,0.93311372,119190.0,119180.0,0.71833]
[1753691325114,1.01701689,119190.0,119180.0,0.71833]
[1753691325721,1.01701689,119190.0,119180.0,0.72033]
[1753691325909,1.01701689,119190.0,119180.0,0.67252]
[1753691326215,1.01701689,119190.0,119180.0,0.72033]
[1753691326419,1.01701689,119190.0,119180.0,0.72333]
[1753691326715,1.01701689,119190.0,119180.0,0.05281]
[1753691327019,0.84966361,119190.0,119180.0,0.72333]
[1753691327422,0.84966361,119190.0,119180.0,0.72033]
[1753691327719,0.84966361,119190.0,119180.0,0.72233]
[1753691328424,0.84966361,119190.0,119180.0,0.72033]
[1753691328719,0.84966361,119190.0,119180.0,0.72133]
[1753691330418,0.84966361,119190.0,119180.0,1.03858]
[1753691331716,0.84966361,119190.0,119180.0,1.10677]
[1753691343436,0.84966361,119190.0,119180.0,1.2745665]
[1753691343837,0.84966361,119190.0,119180.0,1.10677]
[1753691346044,0.84966361,119190.0,119180.0,1.2745665]
[1753691347032,0.69347044,119190.0,119180.0,1.2745665]
[1753691347237,0.76576044,119190.0,119180.0,1.2745665]
[1753691348740,0.68194457,119190.0,119180.0,1.2745665]
[1753691350543,0.93319914,119190.0,119180.0,1.10677]
[1753691354937,0.68194457,119190.0,119180.0,1.10677]
[1753691355140,0.93319914,119190.0,119180.0,1.10677]
[1753691362945,0.68194457,119190.0,119180.0,1.10677]
[1753691363242,0.74237655,119190.0,119180.0,1.10677]
[1753691364444,0.68194457,119190.0,119180.0,1.10677]
[1753691369448,0.93319914,119190.0,119180.0,1.10677]
[1753691370649,0.68194457,119190.0,119180.0,1.35802457]
[1753691370846,0.68194457,119190.0,119180.0,1.10677]
[1753691373352,0.76584774,119190.0,119180.0,1.10677]
[1753691373552,1.01710231,119190.0,119180.0,1.10677]
[1753691374449,1.07753429,119190.0,119180.0,1.10677]
[1753691384461,1.01710231,119190.0,119180.0,1.10677]
[1753691391368,0.76584774,119190.0,119180.0,1.10677]
[1753691391568,1.01710231,119190.0,119180.0,1.10677]
[1753691397269,0.76584774,119190.0,119180.0,1.10677]
[1753691398471,1.01710231,119190.0,119180.0,1.10677]
[1753691399768,0.76584774,119190.0,119180.0,1.10677]
[1753691400167,0.79752774,119190.0,119180.0,1.08660645]
[1753691401474,0.90337753,119190.0,119180.0,1.08660645]
[1753691402369,0.79752774,119190.0,119180.0,1.08660645]
[1753691403575,1.04878231,119190.0,119180.0,1.08660645]
[1753691405975,0.79752774,119190.0,119180.0,1.08660645]
[1753691406974,0.79752774,119190.0,119180.0,1.25441115]
[1753691407176,0.64515774,119190.0,119180.0,1.50566572]
[1753691407477,0.39390317,119190.0,119180.0,1.75692029]
[1753691407679,0.38559973,119190.0,119180.0,1.75692029]
[1753691409877,0.41584979,119190.0,119180.0,1.73675942]
[1753691410783,0.31,119190.0,119180.0,2.00625942]
[1753691411782,0.41584979,119190.0,119180.0,2.00625942]
[1753691412783,0.38552478,119190.0,119180.0,2.00625942]
[1753691412984,0.38552478,119190.0,119180.0,2.01561384]
[1753691413184,0.31,119190.0,119180.0,2.01561384]
[1753691414285,0.38551123,119190.0,119180.0,2.01561384]
[1753691416786,0.6367658,119190.0,119180.0,2.01561384]
[1753691417789,0.56125457,119190.0,119180.0,2.01561384]
[1753691418287,0.56125457,119190.0,119180.0,1.76435927]
[1753691418488,0.56125457,119190.0,119180.0,2.01561384]
[1753691418685,0.31,119190.0,119180.0,2.01561384]
[1753691418885,0.56125457,119190.0,119180.0,2.01561384]
[1753691420089,0.56125457,119190.0,119180.0,1.99545305]
[1753691420285,0.66710436,119190.0,119180.0,1.99545305]
[1753691421085,0.74256729,119190.0,119180.0,1.99545305]
[1753691421589,0.6367175,119190.0,119180.0,1.99545305]
[1753691423092,0.56125457,119190.0,119180.0,1.99545305]
[1753691426194,0.56125457,119190.0,119180.0,1.49294391]
[1753691426490,0.56125457,119190.0,119180.0,1.74419848]
[1753691428695,0.6367175,119190.0,119180.0,1.74419848]
[1753691428890,0.6367175,119190.0,119180.0,1.99545305]
[1753691430692,0.6367175,119190.0,119180.0,1.72403771]
[1753691431193,0.6367175,119190.0,119180.0,1.61063334]
[1753691431395,0.56125457,119190.0,119180.0,1.61063334]
[1753691433093,0.66693866,119190.0,119180.0,1.61063334]
[1753691435094,0.60854457,119190.0,119180.0,1.61063334]
[1753691436492,0.71141457,119190.0,119180.0,1.35937877]
[1753691436688,1.10867323,119190.0,119180.0,1.5929248]
[1753691436888,0.85741866,119190.0,119180.0,1.5929248]
[1753691437084,1.10867323,119190.0,119180.0,1.5929248]
[1753691437285,0.85741866,119190.0,119180.0,1.5929248]
[1753691437582,0.75173457,119190.0,119180.0,1.5929248]
[1753691437896,1.00298914,119190.0,119180.0,1.5929248]
[1753691438094,1.00298914,119190.0,119180.0,1.5247348]
[1753691438294,1.00298914,119190.0,119180.0,1.35693]
[1753691438495,1.00298914,119190.0,119180.0,1.5951148]
[1753691438693,1.10867323,119190.0,119180.0,1.5951148]
[1753691438994,1.1925764,119190.0,119180.0,1.42727]
[1753691439392,1.1925764,119190.0,119180.0,1.5950748]
[1753691440198,1.1925764,119190.0,119180.0,1.3255748]
[1753691440899,0.98594183,119190.0,119180.0,1.27810922]
[1753691441101,0.88025774,119190.0,119180.0,1.27810922]
[1753691441293,0.73479437,119190.0,119180.0,1.27810922]
[1753691441598,0.98604894,119190.0,119180.0,1.27810922]
[1753691448908,0.98604894,119190.0,119180.0,1.25794709]
[1753691450710,0.94572894,119190.0,119180.0,1.25794709]
[1753691451007,0.91826894,119190.0,119180.0,1.50920166]
[1753691451615,0.81247774,119190.0,119180.0,1.50920166]
[1753691452313,0.91588774,119190.0,119180.0,1.50920166]
[1753691459419,0.91588774,119190.0,119180.0,1.48903993]
[1753691459620,1.02167894,119190.0,119180.0,1.48903993]
[1753691461114,1.02167894,119190.0,119180.0,1.23778536]
[1753691461311,0.91588774,119190.0,119180.0,1.23778536]
[1753691461719,0.95620774,119190.0,119180.0,1.23778536]
[1753691462824,1.03176645,119190.0,119180.0,1.23778536]
[1753691463124,0.95620774,119190.0,119180.0,1.23778536]
[1753691464120,0.91588774,119190.0,119180.0,1.23778536]
[1753691464625,0.91588774,119190.0,119180.0,1.48903993]
[1753691465229,1.02167894,119190.0,119180.0,1.48903993]
[1753691467622,1.02167894,119190.0,119180.0,1.46887828]
[1753691469627,1.02167894,119190.0,119180.0,1.21762371]
[1753691469826,1.02167894,119190.0,119180.0,1.46887828]
[1753691472029,1.02167894,119190.0,119180.0,1.21762371]
[1753691472228,1.02167894,119190.0,119180.0,1.46887828]
[1753691473326,1.02167894,119190.0,119180.0,1.21762371]
[1753691474928,1.02167894,119190.0,119180.0,0.54818371]
[1753691475130,1.02167894,119190.0,119180.0,1.46859828]
[1753691475528,1.02167894,119190.0,119180.0,1.44843663]
[1753691476828,1.02167894,119190.0,119180.0,0.77927663]
[1753691477030,1.02167894,119190.0,119180.0,1.44843663]
[1753691479128,1.02167894,119190.0,119180.0,1.19718206]
[1753691479829,1.06199894,119190.0,119180.0,1.19718206]
[1753691480331,0.81074437,119190.0,119180.0,1.19718206]
[1753691480531,1.06199894,119190.0,119180.0,1.44843663]
[1753691480730,1.02167894,119190.0,119180.0,1.44843663]
[1753691481229,1.17241926,119190.0,119180.0,1.33502727]
[1753691481530,1.06662806,119190.0,119180.0,1.33502727]
[1753691482833,0.71199489,119190.0,119180.0,1.33502727]
[1753691483230,0.71199489,119190.0,119180.0,1.50887727]
[1753691483430,0.76129489,119190.0,119180.0,1.48157503]
[1753691483631,1.11865489,119190.0,119180.0,1.46141338]
[1753691486035,1.15950489,119190.0,119180.0,1.46141338]
[1753691486336,1.15950489,119190.0,119180.0,1.21015881]
[1753691486737,1.00876457,119190.0,119180.0,1.21015881]
[1753691487536,1.00876457,119190.0,119180.0,1.47965881]
[1753691488741,1.11459649,119190.0,119180.0,1.47965881]
[1753691490241,1.00876457,119190.0,119180.0,1.47965881]
[1753691492343,1.00876457,119190.0,119180.0,0.91573881]
[1753691492543,1.00876457,119190.0,119180.0,1.58477881]
[1753691493332,1.00058457,119190.0,119180.0,1.58477881]
[1753691494843,1.12533774,119190.0,119180.0,1.58473881]
[1753691495043,1.12533774,119190.0,119180.0,1.41693401]
[1753691495546,1.37659231,119190.0,119180.0,0.74793401]
[1753691495845,1.45218505,119190.0,119180.0,1.3967309]
[1753691496046,1.37659231,119190.0,119180.0,1.3967309]
[1753691496343,1.48242423,119190.0,119180.0,1.3967309]
[1753691496534,1.37659231,119190.0,119180.0,0.2974409]
[1753691496740,1.37659231,119190.0,119180.0,0.82567371]
[1753691497639,1.37659231,119190.0,119180.0,0.66896]
[1753691498035,1.37659231,119190.0,119180.0,0.84281]
[1753691498241,1.37659231,119190.0,119180.0,0.87349]
[1753691498746,1.37659231,119190.0,119180.0,0.96963]
[1753691499043,1.37659231,119190.0,119180.0,1.07487]
[1753691500145,1.46049071,119190.0,119170.0,0.2465]
[1753691500439,0.95798157,119190.0,119180.0,0.66896]
[1753691501033,1.13803651,119200.0,119180.0,0.66896]
[1753691501343,1.45803651,119200.0,119190.0,0.04867]
[1753691501546,2.04445234,119200.0,119190.0,0.04867]
[1753691501736,2.21224434,119200.0,119190.0,0.04867]
[1753691501935,2.06150402,119200.0,119190.0,0.04867]
[1753691502450,2.06250402,119200.0,119190.0,0.04867]
[1753691503548,2.06350402,119200.0,119190.0,0.04867]
[1753691503846,1.89571202,119200.0,119190.0,0.04867]
[1753691504444,2.06350402,119200.0,119180.0,0.66896]
[1753691504638,1.14194831,119200.0,119180.0,0.71714]
[1753691504841,0.25125457,119190.0,119180.0,0.71714]
[1753691505050,0.57125457,119190.0,119180.0,0.71714]
[1753691505452,0.6551507,119190.0,119180.0,0.71714]
[1753691506553,0.90640527,119190.0,119180.0,0.04818]
[1753691506749,0.90640527,119190.0,119180.0,0.7171]
[1753691507050,0.6551507,119190.0,119180.0,0.7171]
[1753691508049,0.6551507,119190.0,119180.0,0.88883]
[1753691508255,0.6551507,119190.0,119180.0,1.03779]
[1753691510252,0.7020807,119190.0,119180.0,1.01048172]